Cogmind - Beta 13 *** ADVENTURER MODE // 2024.03.30 @ 23:58:53 Player: Camdameron7D7 Result: Destroyed by P-60 Hacker with Shock Rifle Performance ------------- Evolutions (3) 1500 Regions Visited (6) 1200 Robots Destroyed (77) 385 Value Destroyed (2137) 2137 Prototype IDs (0) 0 Alien Tech Used (0) 0 Bonus (19) 19 TOTAL SCORE: 5241 Bonus ------- High Alert Combat Kills 19 Cogmind --------- Core Integrity 0/700 Matter 300/300 Energy 100/100 System Corruption 1% Temperature Cool (0) Movement Core (50) Location -7/Lower Caves Parts ------- > --- POWER (1) -------- (None) > --- PROPULSION (3) --- (None) > --- UTILITY (6) ------ Improved Utility Shielding > --- WEAPON (3) ------- (None) > --- INVENTORY (5) ---- (None) Peak State ------------ > --- POWER ------------ Light Nuclear Core > --- PROPULSION ------- Armored Treads Medium Treads > --- UTILITY ---------- Improved Terrain Scan Processor Improved Utility Shielding Hardened Heavy Armor Plating Corruption Screen > --- WEAPON ----------- Tearclaws Spear > --- INVENTORY -------- Micro Nuclear Core Carbon-fiber Leg Heavy Rocket Launcher [Rating: 43] Favorites ----------- Power Light Nuclear Core Engine Ion Engine Power Core Light Nuclear Core Propulsion Light Treads Treads Light Treads Leg Improved Aluminum Leg Utility Corruption Screen Device Weight Redist. System Storage Medium Matter Pod Processor Corruption Screen Protection Improved Utility Shielding Weapon Spear Energy Gun Beam Rifle Energy Cannon Plasma Cannon Ballistic Gun Light Assault Rifle Ballistic Cannon Improved Light Cannon Launcher Heavy Rocket Launcher Slashing Weapon Tearclaws Piercing Weapon Spear Build | -11 -10 -9 -8 -7 -7 -7 ------- Run | Yrd Mat Mat Mat Fac Low Low Slots Evolved 6 | . . 2 2 2 . . Power . | . . . . . . . Propulsion 1 | . . . 1 . . . Utility 4 | . . 2 1 1 . . Weapon 1 | . . . . 1 . . Parts Attached 73 | 6 8 12 16 8 21 2 Power 9 | 1 1 . 2 1 4 . Engine 3 | 1 . . 2 . . . Core 6 | . 1 . . 1 4 . Reactor . | . . . . . . . Propulsion 12 | 2 . . 4 2 3 1 Treads 4 | 2 . . . . 2 . Leg 8 | . . . 4 2 1 1 Wheel . | . . . . . . . Hover . | . . . . . . . Flight . | . . . . . . . Utility 22 | 1 3 5 5 3 5 . Device 7 | . 1 2 2 1 1 . Storage 4 | 1 2 . 1 . . . Processor 6 | . . 2 1 2 1 . Hackware . | . . . . . . . Protection 5 | . . 1 1 . 3 . Artifact . | . . . . . . . Weapon 30 | 2 4 7 5 2 9 1 Energy Gun 6 | . . 1 3 1 1 . Energy Cannon 3 | . . . . 1 2 . Ballistic Gun 10 | 2 3 2 1 . 1 1 Ballistic Cannon 1 | . . 1 . . . . Launcher 7 | . 1 3 1 . 2 . Special Weapon . | . . . . . . . Impact Weapon . | . . . . . . . Slashing Weapon 1 | . . . . . 1 . Piercing Weapon 2 | . . . . . 2 . Special Melee Weapon . | . . . . . . . Unidentified Prototypes . | . . . . . . . Parts Lost 40 | . . 3 11 3 15 8 Power 7 | . . . 2 1 3 1 Propulsion 8 | . . . 2 . 3 3 Utility 10 | . . 1 3 1 4 1 Weapon 15 | . . 2 4 1 5 3 Highest Loss Streak 8 | . . 1 6 3 7 8 To Critical Strikes 1 | . . 1 . . . . Average Slot Usage (%) 74 | . 92 92 81 64 61 42 Engine 2 | . 10 . 1 1 . . Core 6 | . 3 11 6 5 6 4 Treads 13 | . 28 22 13 . 7 11 Leg 4 | . . . 4 23 5 . Device 5 | . 7 8 11 6 1 . Storage 4 | . 13 10 2 . . . Processor 10 | . . 11 18 10 12 6 Protection 6 | . . 7 6 . 9 7 Energy Gun 4 | . . 7 8 14 1 5 Energy Cannon 1 | . . . . 2 2 . Ballistic Gun 5 | . 27 7 . . . . Ballistic Cannon 1 | . . 4 6 . . . Launcher 1 | . . 2 . . 2 . Slashing Weapon 1 | . . . . . 3 . Piercing Weapon 2 | . . . . . 6 5 Naked Turns . | . . . . . . . Heaviest Build 44 | 7 30 19 19 20 44 12 Greatest Support 48 | 40 40 46 46 39 48 48 Greatest Overweight (x) 2 | . . . 1 . 2 . Average Overweight (x) . | . . . . . . . Largest Inventory Capacity 15 | 8 15 5 5 5 5 5 Average Capacity 5 | 5 7 5 5 5 5 5 Most Carried 5 | 3 4 5 5 5 5 2 Average Carried 2 | 1 2 3 2 3 2 . Final Capacity 5 | 5 5 5 5 5 5 5 Final Carried 5 | 1 4 5 4 4 1 . Class Distribution -------------------- 93% | Mutant 6% | Scavenger-Gunner Dominant Class ---------------- Mutant | -10/Materials Mutant | -9/Materials Mutant | -8/Materials Mutant | -7/Factory Mutant | -7/Lower Caves Mutant | -7/Lower Caves Resources | -11 -10 -9 -8 -7 -7 -7 ----------- Run | Yrd Mat Mat Mat Fac Low Low Matter Collected 1698 | 185 436 271 438 30 308 30 Remotely . | . . . . . . . Salvage Created 2731 | . 512 573 759 84 724 79 Parts 146 | . 34 39 43 1 26 3 Haulers Intercepted . | . . . . . . . Recyclers Shooed 3 | . 1 2 . . . . Parts Field Recycled . | . . . . . . . Retrieved Matter . | . . . . . . . Parts Self-Destructed 27 | . . . . . 25 2 Prevented . | . . . . . . . Kills | -11 -10 -9 -8 -7 -7 -7 ------- Run | Yrd Mat Mat Mat Fac Low Low Combat Hostiles Destroyed 52 | . 7 9 18 1 14 3 Melee 7 | . . . . . 5 2 Guns 23 | . 7 5 8 . 2 1 Cannons 8 | . . 3 4 . 1 . AOE 12 | . . 1 5 . 6 . Classes Destroyed 11 | . 6 2 2 . 1 . Worker 4 | . 2 1 1 . . . Builder 2 | . 1 . 1 . . . Tunneler 1 | . . 1 . . . . Recycler 6 | . 3 3 . . . . Mechanic 1 | . . . 1 . . . Watcher 11 | . 2 4 5 . . . Swarmer 17 | . 5 4 4 . 1 3 Grunt 26 | . 2 3 11 . 10 . Brawler 2 | . . . 1 . 1 . Sentry 6 | . . 2 2 1 1 . Thief 1 | . . . . . 1 . Best Kill Streak 9 | . 6 5 9 1 6 2 Combat Bots Only 6 | . 5 3 3 1 6 2 Max Kills in Single Turn 3 | . 1 1 3 1 2 1 Gunslinging . | . . . . . . . Exploded 2 | . . 1 2 . 2 . Melee 1 | . . . . . 1 1 Uniques/NPCs Destroyed . | . . . . . . . Combat | -11 -10 -9 -8 -7 -7 -7 -------- Run | Yrd Mat Mat Mat Fac Low Low Hostile Shots Fired 491 | . 38 48 111 54 176 64 Missed 148 | . 14 18 26 27 46 17 Damage Taken 4544 | . 172 389 1363 149 1912 559 Core 1270 | . 24 48 487 40 522 149 Absorbed by Shields . | . . . . . . . Redirected to Shielding 37 | . . . . . 36 1 Ignored by Resistances 1157 | . 55 117 279 51 502 153 Core Remaining (%) 72 | 100 90 88 11 . . . Volleys Fired 186 | . 37 34 72 12 21 10 Largest 3 | . 2 2 2 2 3 1 Hottest 210 | . 40 95 95 130 210 50 Shots Fired 303 | . 71 65 106 15 36 10 Gun 222 | . 71 45 63 15 18 10 Cannon 59 | . . 15 32 . 12 . Launcher 22 | . . 5 11 . 6 . Special . | . . . . . . . Kinetic 165 | . 71 40 43 . 3 8 Thermal 107 | . . 20 50 15 22 . Explosive 22 | . . 5 11 . 6 . Electromagnetic 9 | . . . 2 . 5 2 Robot Hit Streak 18 | . 17 18 13 8 6 4 Robot Miss Streak 3 | . 3 1 2 2 2 1 Penetration Max . | . . . . . . . Secondary Targets 1 | . 1 . . . . . Max Gunslinging Chain 1 | . 1 . . . . . Shots Hit Robots 263 | . 49 53 80 11 59 11 Core Hits 144 | . 23 26 48 4 32 11 Critical Kills 2 | . 2 . . . . . Critical Parts Destroyed . | . . . . . . . Critical Strikes 20 | . 2 9 4 1 4 . Burn 12 | . . 6 4 1 1 . Destroy 2 | . 2 . . . . . Blast 3 | . . 3 . . . . Impale 3 | . . . . . 3 . Melee Attacks 38 | . . . . . 35 3 Impact . | . . . . . . . Slashing 3 | . . . . . 3 . Piercing 35 | . . . . . 32 3 Sneak Attacks . | . . . . . . . Combat Hostiles . | . . . . . . . Follow-up Attacks . | . . . . . . . Damage Inflicted 6032 | . 652 862 1891 170 2218 239 Guns 2420 | . 652 540 735 170 219 104 Cannons 1017 | . . 222 577 . 218 . Explosions 1490 | . . 100 579 . 811 . Melee 1054 | . . . . . 970 84 Ramming 51 | . . . . . . 51 Kinetic 1982 | . 652 487 718 . 38 87 Thermal 1322 | . . 275 570 170 307 . Explosive 1490 | . . 100 579 . 811 . Electromagnetic 133 | . . . 24 . 92 17 Impact . | . . . . . . . Slashing 27 | . . . . . 27 . Piercing 1027 | . . . . . 943 84 Highest Corruption 3 | . . . 3 . . 1 Average Corruption 2 | . . . 3 . . 1 Corruption Purged . | . . . . . . . Corruption Blocked 5 | . . . . . 4 1 Overload Shots . | . . . . . . . Overflow Damage 180 | . . . 2 . 178 . Projectiles 2 | . . . 2 . . . Explosions 21 | . . . . . 21 . Melee 157 | . . . . . 157 . Knockbacks 6 | . . 1 5 . . . Impact . | . . . . . . . Kinetic 6 | . . 1 5 . . . Secondary . | . . . . . . . Self-Inflicted Damage 140 | . . 22 32 . 62 24 Shots 5 | . . 2 1 . 2 . Rammed 13 | . . . . . . 13 Targets Rammed 13 | . . . . . . 13 Kicked . | . . . . . . . Crushed . | . . . . . . . Highest Temperature 617 | . 8 240 539 72 617 . Average Temperature 150 | . 4 85 165 27 230 . Received Heat Transfer 1863 | . 63 102 675 60 963 . Effects 41 | . . . 23 . 18 . Shutdowns 4 | . . . 1 . 3 . Energy Bleed 4 | . . . 2 . 2 . Interference 8 | . . . 4 . 4 . Matter Decay 2 | . . . 1 . 1 . Short Circuit 4 | . . . 2 . 2 . Damage (minor) 3 | . . . 1 . 2 . Damage (major) 13 | . . . 10 . 3 . Damage (core) 3 | . . . 2 . 1 . Siege Activations . | . . . . . . . Robots Corrupted . | . . . . . . . Combat Hostiles . | . . . . . . . Parts Fried . | . . . . . . . Impact Corruptions . | . . . . . . . Robots Melted 2 | . . . 1 1 . . Combat Hostiles 2 | . . . 1 1 . . Parts Melted 6 | . . 2 2 1 1 . Heat Transferred 4079 | . . 1147 1739 481 712 . Parts Sabotaged . | . . . . . . . Parts Stolen 2 | . . . . . 2 . Parts Stripped . | . . . . . . . Power Chain Reactions . | . . . . . . . Alert | -11 -10 -9 -8 -7 -7 -7 ------- Run | Yrd Mat Mat Mat Fac Low Low Peak Influence 403 | . 180 400 403 191 . . Initial 156 | . . 64 75 156 . . Average 141 | . 47 207 237 181 . . Maximum Alert Level 2 | . . 2 2 . . . Low Security (%) 69 | 100 100 27 42 100 . . Level 1 28 | . . 68 51 . . . Level 2 2 | . . 4 5 . . . Level 3 . | . . . . . . . Level 4 . | . . . . . . . Level 5 . | . . . . . . . High Security . | . . . . . . . Max Security . | . . . . . . . Squads Dispatched 3 | . . . 3 . . . Investigation 1 | . . . 1 . . . Extermination . | . . . . . . . Reinforcement 2 | . . . 2 . . . Assault . | . . . . . . . Garrison . | . . . . . . . Intercept . | . . . . . . . Searches Triggered . | . . . . . . . Construction Impeded . | . . . . . . . Haulers Reinforced . | . . . . . . . Active Scanning Responses . | . . . . . . . Cargo Convoy Interrupts . | . . . . . . . Stealth | -11 -10 -9 -8 -7 -7 -7 --------- Run | Yrd Mat Mat Mat Fac Low Low Distress Signals 3 | . 1 1 1 . . . Communications Jammed . | . . . . . . . Distress Signals . | . . . . . . . Times Spotted 75 | . 12 14 25 2 18 4 Peak Tracking Total 7 | . 3 5 5 2 7 4 Tactical Retreats 1 | . . 1 . . . . Traps | -11 -10 -9 -8 -7 -7 -7 ------- Run | Yrd Mat Mat Mat Fac Low Low Traps Triggered 5 | . . 4 1 . . . Indirectly . | . . . . . . . Trap Hack Attempts . | . . . . . . . Triggered . | . . . . . . . Disarmed . | . . . . . . . Reprogrammed . | . . . . . . . Reused . | . . . . . . . Traps Extracted . | . . . . . . . Installed . | . . . . . . . Triggered . | . . . . . . . Machines | -11 -10 -9 -8 -7 -7 -7 ---------- Run | Yrd Mat Mat Mat Fac Low Low Machines Disabled 1 | . . . 1 . . . Max in Single Turn 1 | . . . 1 . . . Machines Repaired . | . . . . . . . Machines Dismantled . | . . . . . . . Machines Sabotaged . | . . . . . . . Overloaded Fab Kills . | . . . . . . . Hacking | -11 -10 -9 -8 -7 -7 -7 --------- Run | Yrd Mat Mat Mat Fac Low Low Machines Accessed 1 | . . 1 . . . . Terminals 1 | . . 1 . . . . Fabricators . | . . . . . . . Repair Stations . | . . . . . . . Recycling Units . | . . . . . . . Scanalyzers . | . . . . . . . Garrison Access . | . . . . . . . Total Hacks 1 | . . 1 . . . . Successful 1 | . . 1 . . . . Failed . | . . . . . . . Catastrophic . | . . . . . . . Database Lockouts . | . . . . . . . Manual . | . . . . . . . Terminals 1 | . . 1 . . . . Fabricators . | . . . . . . . Repair Stations . | . . . . . . . Recycling Units . | . . . . . . . Scanalyzers . | . . . . . . . Garrison Access . | . . . . . . . Terminal Hacks 1 | . . 1 . . . . Record 1 | . . 1 . . . . Fabricator Hacks . | . . . . . . . Repair Station Hacks . | . . . . . . . Recycling Unit Hacks . | . . . . . . . Scanalyzer . | . . . . . . . Garrison Access Hacks . | . . . . . . . Unauthorized Hacks . | . . . . . . . Terminals . | . . . . . . . Fabricators . | . . . . . . . Repair Stations . | . . . . . . . Recycling Units . | . . . . . . . Scanalyzers . | . . . . . . . Garrison Access . | . . . . . . . Data Cores Recovered . | . . . . . . . Used . | . . . . . . . Hacking Detections . | . . . . . . . Full Trace Events . | . . . . . . . Feedback Events . | . . . . . . . Feedback Blocked . | . . . . . . . Robot Schematics Acquired . | . . . . . . . Robots Built . | . . . . . . . Authchips . | . . . . . . . Time . | . . . . . . . Total Robot Build Rating . | . . . . . . . Part Schematics Acquired . | . . . . . . . Parts Built . | . . . . . . . Authchips . | . . . . . . . Time . | . . . . . . . Total Part Build Rating . | . . . . . . . Parts Repaired . | . . . . . . . Time . | . . . . . . . Parts Recycled . | . . . . . . . Recycled Matter . | . . . . . . . Retrieved Matter . | . . . . . . . Retrieved Components . | . . . . . . . Parts Scanalyzed . | . . . . . . . Part Schematics Acquired . | . . . . . . . Parts Damaged . | . . . . . . . Bothacking | -11 -10 -9 -8 -7 -7 -7 ------------ Run | Yrd Mat Mat Mat Fac Low Low Used RIF Installer . | . . . . . . . Robots Hacked . | . . . . . . . Non-combat . | . . . . . . . Combat . | . . . . . . . Robot Hacks Applied . | . . . . . . . Relay Couplers Released . | . . . . . . . Fabnet Peak Effective % . | . . . . . . . Robots Rewired . | . . . . . . . Allies Hacked . | . . . . . . . Hacks Repelled . | . . . . . . . Allies | -11 -10 -9 -8 -7 -7 -7 -------- Run | Yrd Mat Mat Mat Fac Low Low Total Allies . | . . . . . . . Largest Group . | . . . . . . . Highest-Rated Group . | . . . . . . . Highest-Rated Ally . | . . . . . . . Total Orders . | . . . . . . . Ally Attacks . | . . . . . . . Total Damage . | . . . . . . . Kills . | . . . . . . . Allies Corrupted . | . . . . . . . Allies Melted . | . . . . . . . Intel | -11 -10 -9 -8 -7 -7 -7 ------- Run | Yrd Mat Mat Mat Fac Low Low Robot Analysis Total . | . . . . . . . Derelict Logs Recovered . | . . . . . . . Drone Launches . | . . . . . . . Drone Recoveries . | . . . . . . . Exploration | -11 -10 -9 -8 -7 -7 -7 ------------- Run | Yrd Mat Mat Mat Fac Low Low Turns Passed 4073 | 360 642 479 704 281 1489 118 Spaces Moved 1958 | 65 311 216 330 195 793 48 Core 35 | 5 . . 27 . . 3 Treads 1294 | 60 311 216 253 . 410 44 Legs 629 | . . . 50 195 383 1 Wheels . | . . . . . . . Hover . | . . . . . . . Flight . | . . . . . . . Fastest Speed 50 | 50 160 160 50 120 120 50 Average Speed 155 | 151 160 160 146 120 164 156 Slowest Speed 260 | 160 160 160 160 120 260 165 Overloaded Moves . | . . . . . . . Propulsion Burnouts . | . . . . . . . Robots Hopped . | . . . . . . . Cave-ins Triggered 1 | . . . 1 . . . Exploration Rate (%) 30 | 8 51 31 31 4 79 10 Regions Visited 6 Branch Regions 2 Pre-discovered Areas . | . . . . . . . Known Exits Taken 2 | . . 1 1 . . . Unknown Exits Taken 4 | 1 1 . . 1 1 . Scrap Searched 2 | . . . . . 2 . Spaces Dug . | . . . . . . . Terrain Destroyed 121 | . . 25 50 . 46 . Melee . | . . . . . . . Projectile . | . . . . . . . AOE 121 | . . 25 50 . 46 . Terrain Rammed . | . . . . . . . Walls Destroyed . | . . . . . . . Machines Disabled . | . . . . . . . Actions | -11 -10 -9 -8 -7 -7 -7 --------- Run | Yrd Mat Mat Mat Fac Low Low Total 2637 | 327 387 282 446 228 890 77 Wait 290 | 249 19 13 7 . 2 . Move 1952 | 64 310 215 329 194 792 48 Hop . | . . . . . . . Pick Up 62 | 7 9 7 15 9 14 1 Fast Attach 2 | . . . 1 1 . . Attach 51 | 6 3 5 12 5 18 2 Detach 2 | . . . 1 . 1 . Swap 20 | . 5 7 3 2 3 . Drop 21 | 1 4 1 6 5 4 . Fire 186 | . 37 34 72 12 21 10 Melee 38 | . . . . . 35 3 Ram 13 | . . . . . . 13 Kick . | . . . . . . . Crush . | . . . . . . . Escape Stasis . | . . . . . . . Rewire . | . . . . . . . Trap . | . . . . . . . Miscellaneous . | . . . . . . . Route ------- -11/Scrapyard -10/Materials (discovered 2 exits: *Mat / [*Min]) -9/Materials -8/Materials -7/Factory -7/Lower Caves -7/Lower Caves History --------- Turn | Location | Event 4 | -11/Scrapyard | Discovered new exit (range 16) 361 | -11/Scrapyard | Entered Materials 362 | -10/Materials | Build established: Mutant 488 | -10/Materials | Discovered new exit (range 13) 889 | -10/Materials | Discovered new exit (range 5) 1003 | -10/Materials | Entered another Materials area 1003 | -9/Materials | Evolved 2 slots: Utility x2 1419 | -9/Materials | Discovered new exit (range 13) 1481 | -9/Materials | Identified exit to Materials 1482 | -9/Materials | Entered another Materials area 1482 | -8/Materials | Evolved 2 slots: Propulsion x1, Utility x1 1839 | -8/Materials | Discovered new exit (range 7) 1851 | -8/Materials | Identified exit to Factory 2005 | -8/Materials | Core integrity fell below 50% 2039 | -8/Materials | Lost 6 parts (1p2n2u1w) 2040 | -8/Materials | Crushed by falling debris 2045 | -8/Materials | Core integrity fell below 20% 2186 | -8/Materials | Entered Factory 2186 | -7/Factory | Evolved 2 slots: Utility x1, Weapon x1 2242 | -7/Factory | Discovered new exit (range 14) 2280 | -7/Factory | Lost 3 parts (1p1u1w) 2467 | -7/Factory | Entered Lower Caves 2510 | -7/Lower Caves | Encountered a Warlord checkpoint 2608 | -7/Lower Caves | Attracted the attention of an 0b10 outpost 2639 | -7/Lower Caves | Core integrity fell below 50% 2680 | -7/Lower Caves | Lost 7 parts (1p2n2u2w) 2824 | -7/Lower Caves | Lost 3 parts (1n2w) 3887 | -7/Lower Caves | Core integrity fell below 20% 3941 | -7/Lower Caves | Lost 3 parts (1p1u1w) 3948 | -7/Lower Caves | Discovered new exit (range 5) 3956 | -7/Lower Caves | Entered another Lower Caves area 4074 | -7/Lower Caves | Destroyed by P-60 Hacker with Shock Rifle Last Messages --------------- VTOL Module fries itself beyond repair. S-27 Virus destroyed. Med. Treads destroyed. Corruption Screen intercepted 1% system corruption. Autogun destroyed. Slammed into S-27 Virus. Corruption Screen broken. Destabilizing: Short circuit. Slammed into S-27 Virus. S-27 Virus destroyed. [Achievement: Fist Fight] Acquired 25 matter. Acquired 5 matter. Carbon-fiber Leg destroyed. Slammed into P-60 Hacker. Broken Corruption Screen destroyed. Slammed into P-60 Hacker. VTOL Module fries itself beyond repair. Slammed into P-60 Hacker. Map ----- +----------------------------------------------------+ | ?????????????????????????# ??????????######?????? | | ??????????????????????????# ###?????## ##????? | | ????????????????????????### ###### #????? | | ????????????????????????# ##????? | | ????????????????????????????# ###?????? | | ????????????????????????????###### ##??????? | | ?????????????????????????????????# ##?????? | | ????????????????????????????????## ##????? | | ??????????????????????? #?????## #????? | | ?????????????????????? #???## #####????? | | ???????????????????? #### ######???? | | ??????????????????? #???? | | ??????????????????? " #???? | | ???????????????????# ####### """" #???? | | ???????????#???????# #####?##### " #???? | | ?????????? ??????# ??????# " #???? | | ?????????? ??????# ??????## """ #???? | | ??????????## ?????? ??????## """" #???? | | ?????????## ?????? #?###### "" #???? | | ?????????# ??????# #?# #???? | | ??????????? ##???# ### #???? | | ??????????????# #### % ## ### ######???? | | ???????????????# % % ### ##????????? | | ????????????????# %%% #?# ###?????????? | | ????????????????## %%% #? ##???????????? | | ?????????????????## %@p ####? #????????????? | | ??????????????????# ## #???# ????????????? | | ??????????????????## #### #???####????????????? | | ???????????????????## ##??###???????????????????? | | ????????????????????####?????????????????????????? | | ?????????????????????????????????????????????????? | | ?????????????????????????????????????????????????? | | ?????????????????????????????????????????????????? | | ?????????????????????????????????????????????????? | | ?????????????????????????????????????????????????? | | ?????????????????????????????????????????????????? | | ?????????????????????????????????????????????????? | | ?????????????????????????????????????????????????? | | ?????????????????????????????????????????????????? | | ?????????????????????????????????????????????????? | | ?????????????????????????????????????????????????? | | ?????????????????????????????????????????????????? | | ?????????????????????????????????????????????????? | | ?????????????????????????????????????????????????? | | ?????????????????????????????????????????????????? | | ?????????????????????????????????????????????????? | | ?????????????????????????????????????????????????? | | ?????????????????????????????????????????????????? | | ?????????????????????????????????????????????????? | | ?????????????????????????????????????????????????? | +----------------------------------------------------+ Best States ------------- Heat Dissipation 38 Energy Generation 15 Energy Capacity 265 Matter Stores 400 Matter Capacity 400 Sight Range 16 Robot Scan Range 15 Terrain Scan Density 110 ECM Strength 1 Additional Mass Support 6 Corruption Block 8 Armor Coverage 600 Resistance: KI 20 Resistance: TH 20 Resistance: EX 20 Resistance: EM 20 Resistance: I 20 Resistance: S 20 Resistance: P 20 Utility Shielding 66 Evasion (%) 55 Targeting Accuracy 5 Core Analysis 6 Recoil Reduction 2 Offensive Hacking 10 Item Schematics ----------------- None Robot Schematics ------------------ None Fabricated ------------ Nothing Alien Tech Used ----------------- None Achievements -------------- Fist Fight Let's See Who's Tougher Unlikely Earthworm Challenges ------------ None Game ------ Seed PhysicsMicrowarpDoublenader Manual? 0 Play Time 00:47:47 Cumulative 4.7 hours Start 2024.03.30 @ 23:10:40 End 2024.03.30 @ 23:58:53 Sessions 1 Manual Loads 0 Difficulty Adventurer Special Mode None Game No. 3 Rogue 0 Adventurer 3 Explorer 0 Win Type - Total 0 Types 0/0/0/0/0/0/0/0/0 Lore% 1 Gallery% 9 Achievement% 8 Wizard Run 0 Options --------- Layout 1 ASCII 0 Keyboard 0 Movement Mouse Keybinds 0 Fullscreen 1 Font 48/Smallcaps Map View 50x35 Zoom Use 0% Tactical HUD 0 Map Filters NONE Filters NONE Steam 1 RUN: ed710d99-6872-4a8d-95e1-9ffdf522462a